{"text_format":"3","workbook":"xlsx","n_sheets":1,"sheets":["Kütüphane Kitabı Teslim Alma"],"not_rendered":{"defined_names":4},"read":"whole","date_system":"1900"}

{"sheet":"Kütüphane Kitabı Teslim Alma","index":0,"n_rows":9,"n_cols":8,"rows_kept":9,"merged":[[0,1,0,4],[0,5,0,6]]}
[null,"Kütüphane Kitabı Teslim Alma Sayfası",{"$nulls":3},"SON TESLİM TARİHİNE KALAN GÜN: ",null,10]
["Süresi Geçmiş","ÖĞRENCİ","KİŞİ E-POSTASI","İLGİLİ KİŞİ TELEFONU","KİTAP ADI","ÖDÜNÇ ALMA TARİHİ","İADE TARİHİ","GÜN"]
[{"$f":"IFERROR(((Kitaplar[[#This Row],[ÖDÜNÇ ALMA TARİHİ]]+İzinVerilenGün)<TODAY())*(LEN(Kitaplar[[#This Row],[İADE TARİHİ]])=0)*(LEN(Kitaplar[[#This Row],[ÖDÜNÇ ALMA TARİHİ]])>0),0)","v":0},"Pınar Karaca","birisi@example.com","555-0100","Küçük Ev",{"$f":"DATE(YEAR(TODAY()),1,14)","v":"2018-01-14"},{"$f":"DATE(YEAR(TODAY()),1,21)","v":"2018-01-21"},{"$f":"IFERROR(IF(Kitaplar[[#This Row],[İADE TARİHİ]]=\"\",IF(Kitaplar[[#This Row],[ÖDÜNÇ ALMA TARİHİ]]<>\"\", TODAY()-Kitaplar[[#This Row],[ÖDÜNÇ ALMA TARİHİ]],\"\"),Kitaplar[[#This Row],[İADE TARİHİ]]-Kitaplar[[#This Row],[ÖDÜNÇ ALMA TARİHİ]]), \"\")","v":7}]
[{"$f":"IFERROR(((Kitaplar[[#This Row],[ÖDÜNÇ ALMA TARİHİ]]+İzinVerilenGün)<TODAY())*(LEN(Kitaplar[[#This Row],[İADE TARİHİ]])=0)*(LEN(Kitaplar[[#This Row],[ÖDÜNÇ ALMA TARİHİ]])>0),0)","v":0},"Mehmet Koç","birisi@example.com","555-0101","Minik Örümcek Şarlot",{"$f":"DATE(YEAR(TODAY()),2,15)","v":"2018-02-15"},{"$f":"DATE(YEAR(TODAY()),2,18)","v":"2018-02-18"},{"$f":"IFERROR(IF(Kitaplar[[#This Row],[İADE TARİHİ]]=\"\",IF(Kitaplar[[#This Row],[ÖDÜNÇ ALMA TARİHİ]]<>\"\", TODAY()-Kitaplar[[#This Row],[ÖDÜNÇ ALMA TARİHİ]],\"\"),Kitaplar[[#This Row],[İADE TARİHİ]]-Kitaplar[[#This Row],[ÖDÜNÇ ALMA TARİHİ]]), \"\")","v":3}]
[{"$f":"IFERROR(((Kitaplar[[#This Row],[ÖDÜNÇ ALMA TARİHİ]]+İzinVerilenGün)<TODAY())*(LEN(Kitaplar[[#This Row],[İADE TARİHİ]])=0)*(LEN(Kitaplar[[#This Row],[ÖDÜNÇ ALMA TARİHİ]])>0),0)","v":0},"Meltem Gümüş","birisi@example.com","555-0102","Hayalet Tollbooth",{"$f":"DATE(YEAR(TODAY()),2,17)","v":"2018-02-17"},{"$f":"DATE(YEAR(TODAY()),2,22)","v":"2018-02-22"},{"$f":"IFERROR(IF(Kitaplar[[#This Row],[İADE TARİHİ]]=\"\",IF(Kitaplar[[#This Row],[ÖDÜNÇ ALMA TARİHİ]]<>\"\", TODAY()-Kitaplar[[#This Row],[ÖDÜNÇ ALMA TARİHİ]],\"\"),Kitaplar[[#This Row],[İADE TARİHİ]]-Kitaplar[[#This Row],[ÖDÜNÇ ALMA TARİHİ]]), \"\")","v":5}]
[{"$f":"IFERROR(((Kitaplar[[#This Row],[ÖDÜNÇ ALMA TARİHİ]]+İzinVerilenGün)<TODAY())*(LEN(Kitaplar[[#This Row],[İADE TARİHİ]])=0)*(LEN(Kitaplar[[#This Row],[ÖDÜNÇ ALMA TARİHİ]])>0),0)","v":0},"Halit Güngör","birisi@example.com","555-0103","Bayan Frisby ve Nimh Fareleri",{"$f":"DATE(YEAR(TODAY()),2,17)","v":"2018-02-17"},{"$f":"DATE(YEAR(TODAY()),2,25)","v":"2018-02-25"},{"$f":"IFERROR(IF(Kitaplar[[#This Row],[İADE TARİHİ]]=\"\",IF(Kitaplar[[#This Row],[ÖDÜNÇ ALMA TARİHİ]]<>\"\", TODAY()-Kitaplar[[#This Row],[ÖDÜNÇ ALMA TARİHİ]],\"\"),Kitaplar[[#This Row],[İADE TARİHİ]]-Kitaplar[[#This Row],[ÖDÜNÇ ALMA TARİHİ]]), \"\")","v":8}]
[{"$f":"IFERROR(((Kitaplar[[#This Row],[ÖDÜNÇ ALMA TARİHİ]]+İzinVerilenGün)<TODAY())*(LEN(Kitaplar[[#This Row],[İADE TARİHİ]])=0)*(LEN(Kitaplar[[#This Row],[ÖDÜNÇ ALMA TARİHİ]])>0),0)","v":0},"Özlem Kurt","birisi@example.com","555-0104","Matilda",{"$f":"DATE(YEAR(TODAY()),2,18)","v":"2018-02-18"},{"$f":"DATE(YEAR(TODAY()),2,28)","v":"2018-02-28"},{"$f":"IFERROR(IF(Kitaplar[[#This Row],[İADE TARİHİ]]=\"\",IF(Kitaplar[[#This Row],[ÖDÜNÇ ALMA TARİHİ]]<>\"\", TODAY()-Kitaplar[[#This Row],[ÖDÜNÇ ALMA TARİHİ]],\"\"),Kitaplar[[#This Row],[İADE TARİHİ]]-Kitaplar[[#This Row],[ÖDÜNÇ ALMA TARİHİ]]), \"\")","v":10}]
[{"$f":"IFERROR(((Kitaplar[[#This Row],[ÖDÜNÇ ALMA TARİHİ]]+İzinVerilenGün)<TODAY())*(LEN(Kitaplar[[#This Row],[İADE TARİHİ]])=0)*(LEN(Kitaplar[[#This Row],[ÖDÜNÇ ALMA TARİHİ]])>0),0)","v":1},"Meryem Öztürk","birisi@example.com","555-0105","Narnia Günlükleri",{"$f":"DATE(YEAR(TODAY()),1,23)","v":"2018-01-23"},null,{"$f":"IFERROR(IF(Kitaplar[[#This Row],[İADE TARİHİ]]=\"\",IF(Kitaplar[[#This Row],[ÖDÜNÇ ALMA TARİHİ]]<>\"\", TODAY()-Kitaplar[[#This Row],[ÖDÜNÇ ALMA TARİHİ]],\"\"),Kitaplar[[#This Row],[İADE TARİHİ]]-Kitaplar[[#This Row],[ÖDÜNÇ ALMA TARİHİ]]), \"\")","v":162}]
[{"$f":"IFERROR(((Kitaplar[[#This Row],[ÖDÜNÇ ALMA TARİHİ]]+İzinVerilenGün)<TODAY())*(LEN(Kitaplar[[#This Row],[İADE TARİHİ]])=0)*(LEN(Kitaplar[[#This Row],[ÖDÜNÇ ALMA TARİHİ]])>0),0)","v":0},"Şerife Yıldırım","birisi@example.com","555-0106","Gölün Cadısı",{"$f":"TODAY()","v":"2018-07-04"},null,{"$f":"IFERROR(IF(Kitaplar[[#This Row],[İADE TARİHİ]]=\"\",IF(Kitaplar[[#This Row],[ÖDÜNÇ ALMA TARİHİ]]<>\"\", TODAY()-Kitaplar[[#This Row],[ÖDÜNÇ ALMA TARİHİ]],\"\"),Kitaplar[[#This Row],[İADE TARİHİ]]-Kitaplar[[#This Row],[ÖDÜNÇ ALMA TARİHİ]]), \"\")","v":0}]